bitfinex-derivatives/quotes_SOLF0:USTF0_20260220
["timestamp","ask_amount","ask_price","bid_price","bid_amount"]
[1771556228686,4.38226909,82.956,82.93,3.96151055]
[1771556228881,10.8538,82.966,82.93,3.96151055]
[1771556229084,4.01207323,82.975,82.93,3.96151055]
[1771556229284,4.3825487,82.974,82.93,3.96151055]
[1771556229583,4.3825487,82.973,82.93,3.96151055]
[1771556229786,4.3825487,82.972,82.93,3.96151055]
[1771556229983,4.3825487,82.971,82.94,3.72168762]
[1771556230187,4.3825487,82.97,82.94,3.72168762]
[1771556230391,4.3825487,82.97,82.93,3.72168762]
[1771556230392,4.01207323,82.968,82.93,3.72168762]
[1771556230686,4.01207323,82.959,82.924,10.8592]
[1771556232597,4.01207323,82.957,82.924,10.8592]
[1771556232787,4.01207323,82.955,82.924,10.8592]
[1771556233090,4.38041101,82.954,82.924,10.8592]
[1771556233293,4.01207323,82.953,82.924,10.8592]
[1771556233485,4.01207323,82.953,82.925,3.72168762]
[1771556236897,4.01207323,82.953,82.927,10.8588]
[1771556247000,3.13997511,82.97,82.93,3.72168762]
[1771556247201,4.3863191,82.969,82.931,3.72168762]
[1771556247404,4.3863191,82.968,82.931,3.72168762]
[1771556247605,4.3863191,82.967,82.931,3.72168762]
[1771556247901,4.01207323,82.972,82.931,3.72168762]
[1771556247902,4.3863191,82.966,82.931,3.72168762]
[1771556248101,4.3863191,82.965,82.931,3.72168762]
[1771556248301,4.3863191,82.964,82.931,3.72168762]
[1771556248502,4.01207323,82.972,82.932,3.72168762]
[1771556248797,4.01207323,82.97,82.932,3.72168762]
[1771556248998,4.01207323,82.968,82.932,3.72168762]
[1771556249202,4.01207323,82.966,82.932,3.72168762]
[1771556249403,4.01207323,82.964,82.932,3.72168762]
[1771556249706,4.01207323,82.962,82.932,3.72168762]
[1771556253908,4.01207323,82.96,82.932,3.72168762]
[1771556254106,8.398774,82.959,82.932,3.72168762]
[1771556254308,8.398774,82.958,82.932,3.72168762]
[1771556254510,4.38670077,82.957,82.932,3.72168762]
[1771556254807,4.38670077,82.956,82.932,3.72168762]
[1771556255008,4.01207323,82.958,82.932,3.72168762]
[1771556255204,4.38622381,82.957,82.932,3.72168762]
[1771556255411,4.38622381,82.956,82.932,3.72168762]
[1771556255709,4.01207323,82.958,82.932,3.72168762]
[1771556255906,4.38616995,82.957,82.932,3.72168762]
[1771556256110,4.38616995,82.956,82.932,3.72168762]
[1771556256312,4.38611431,82.955,82.932,3.72168762]
[1771556256515,4.01207323,82.958,82.932,3.72168762]
[1771556256811,4.38611431,82.957,82.932,3.72168762]
[1771556257011,4.38611431,82.956,82.932,3.72168762]
[1771556257211,4.38611431,82.955,82.932,3.72168762]
[1771556257412,4.01207323,82.958,82.932,3.72168762]
[1771556257614,4.38606278,82.957,82.932,3.72168762]
[1771556257813,4.38606278,82.956,82.932,3.72168762]
[1771556258007,4.38606278,82.955,82.932,3.72168762]
[1771556258210,4.01207323,82.958,82.932,3.72168762]
[1771556258415,4.3859222,82.957,82.932,3.72168762]
[1771556258614,4.3859222,82.956,82.932,3.72168762]
[1771556258815,4.3859222,82.955,82.932,3.72168762]
[1771556259117,4.01207323,82.958,82.932,3.72168762]
[1771556259311,4.38583071,82.957,82.932,3.72168762]
[1771556259518,4.01207323,82.958,82.932,3.72168762]
[1771556259519,4.38583071,82.956,82.932,3.72168762]
[1771556259810,4.38583071,82.955,82.932,3.72168762]
[1771556260014,4.01207323,82.958,82.932,3.72168762]
[1771556260315,4.38583071,82.957,82.932,3.72168762]
[1771556260615,4.38583071,82.956,82.932,3.72168762]
[1771556260815,4.38583071,82.955,82.932,3.72168762]
[1771556261020,4.01207323,82.958,82.932,3.72168762]
[1771556261216,4.38576604,82.957,82.932,3.72168762]
[1771556261515,4.38576604,82.956,82.932,3.72168762]
[1771556261720,4.38576604,82.955,82.932,3.72168762]
[1771556261917,4.38576604,82.954,82.932,3.72168762]
[1771556262217,4.01207323,82.958,82.932,3.72168762]
[1771556262417,4.38555863,82.957,82.932,3.72168762]
[1771556262716,4.38555863,82.956,82.932,3.72168762]
[1771556262917,4.38555863,82.955,82.932,3.72168762]
[1771556263118,4.01207323,82.958,82.932,3.72168762]
[1771556263319,4.38670318,82.957,82.932,3.72168762]
[1771556263621,4.38670318,82.956,82.932,3.72168762]
[1771556263819,4.38670318,82.955,82.932,3.72168762]
[1771556264021,4.01207323,82.958,82.932,3.72168762]
[1771556264321,4.38682647,82.957,82.932,3.72168762]
[1771556264523,4.38682647,82.956,82.932,3.72168762]
[1771556264819,4.38682647,82.955,82.932,3.72168762]
[1771556265119,4.38682647,82.954,82.932,3.72168762]
[1771556265316,4.01207323,82.958,82.932,3.72168762]
[1771556265622,4.38799661,82.957,82.932,3.72168762]
[1771556265822,4.38799661,82.956,82.932,3.72168762]
[1771556266123,4.38799661,82.955,82.932,3.72168762]
[1771556266322,4.38799661,82.954,82.932,3.72168762]
[1771556266523,4.01207323,82.958,82.932,3.72168762]
[1771556266722,4.38800506,82.957,82.932,3.72168762]
[1771556266914,4.38800506,82.956,82.932,3.72168762]
[1771556267118,4.38800506,82.955,82.932,3.72168762]
[1771556267320,4.38800506,82.954,82.932,3.72168762]
[1771556267518,4.01207323,82.958,82.932,3.72168762]
[1771556267719,4.04567691,82.956,82.919,3.90513993]
[1771556268014,4.04567691,82.954,82.919,3.90513993]
[1771556268218,4.04567691,82.952,82.919,3.90513993]
[1771556268419,4.04567691,82.95,82.919,3.90513993]
[1771556268618,4.04567691,82.948,82.919,3.90513993]
[1771556282430,4.00794855,82.957,82.923,3.76109946]
[1771556282630,4.00794855,82.967,82.923,3.76109946]
[1771556282831,4.3980188,82.966,82.923,3.76109946]
[1771556283033,4.3980188,82.965,82.923,3.76109946]
[1771556283225,4.3980188,82.964,82.923,3.76109946]
[1771556283433,10.8538,82.966,82.923,3.76109946]
[1771556283631,4.39781225,82.965,82.923,3.76109946]
[1771556283930,4.39781225,82.964,82.923,3.76109946]
[1771556284135,10.8538,82.966,82.923,3.76109946]
[1771556284334,4.39774725,82.965,82.923,3.76109946]
[1771556284534,10.8538,82.966,82.923,3.76109946]
[1771556284833,4.39758041,82.965,82.925,3.76109946]
[1771556285034,10.8538,82.966,82.925,3.76109946]
[1771556285226,4.39758563,82.965,82.925,3.76109946]
[1771556285432,10.8538,82.966,82.925,3.76109946]
[1771556285634,4.39735247,82.965,82.925,3.76109946]
[1771556285831,10.8538,82.966,82.927,3.76109946]
[1771556286034,4.3973502,82.965,82.927,3.76109946]
[1771556286239,4.00794855,82.967,82.933,3.76109946]
[1771556287231,10.8532,82.97,82.933,3.76109946]
[1771556287431,4.39708209,82.969,82.933,3.76109946]
[1771556287632,10.8532,82.97,82.933,3.76109946]
[1771556287833,4.39694247,82.969,82.933,3.76109946]
[1771556288031,10.8532,82.97,82.933,3.76109946]
[1771556288235,4.39778435,82.969,82.933,3.76109946]
[1771556288439,10.8532,82.97,82.933,3.76109946]
[1771556288639,4.39834518,82.969,82.933,3.76109946]
[1771556288832,10.8532,82.97,82.933,3.76109946]
[1771556289037,4.39833342,82.969,82.933,3.76109946]
[1771556289339,3.65653779,82.976,82.933,3.76109946]
[1771556289541,3.65653779,82.974,82.933,3.76109946]
[1771556289734,3.65653779,82.972,82.933,3.76109946]
[1771556289940,4.39854376,82.971,82.933,3.76109946]
[1771556290144,4.39854376,82.97,82.933,3.76109946]
[1771556290437,4.39854376,82.969,82.935,3.98522764]
[1771556290643,3.65653779,82.972,82.935,3.98522764]
[1771556290941,3.65653779,82.97,82.935,3.98522764]
[1771556291236,8.05638758,82.969,82.936,10.8576]
[1771556291542,3.65653779,82.969,82.936,10.8576]
[1771556291843,3.65653779,82.969,82.937,3.98522764]
[1771556292642,3.65653779,82.969,82.939,3.98522764]
[1771556293140,10.8521,82.979,82.939,3.98522764]
[1771556293141,14.50863779,82.979,82.939,3.98522764]
[1771556293348,3.65653779,82.977,82.939,3.98522764]
[1771556293644,4.39996046,82.976,82.939,3.98522764]
[1771556293943,4.39996046,82.975,82.939,3.98522764]
[1771556294144,4.39996046,82.974,82.94,10.8571]
[1771556294445,3.65653779,82.977,82.941,3.98522764]
[1771556294742,4.39950614,82.976,82.941,3.98522764]
[1771556294943,4.39950614,82.975,82.941,3.98522764]
[1771556295140,4.39950614,82.974,82.941,3.98522764]
[1771556295343,3.65653779,82.977,82.941,3.98522764]
[1771556295535,4.39921666,82.976,82.941,3.98522764]
[1771556295739,4.39921666,82.975,82.947,3.98522764]
[1771556295945,3.65653779,82.977,82.947,3.98522764]
[1771556296147,4.39923587,82.976,82.947,3.98522764]
[1771556296344,4.39923587,82.975,82.947,3.98522764]
[1771556296649,3.65653779,82.992,82.956,3.98522764]
[1771556297746,3.65653779,82.992,82.917,21.7202]
[1771556297747,3.65653779,82.992,82.958,3.98522764]
[1771556301051,3.13962936,82.99,82.958,3.98522764]
[1771556301454,291.56320761,82.998,82.963,3.98522764]
[1771556301648,3.65653779,82.997,82.963,3.98522764]
[1771556302648,3.65653779,82.997,82.964,14.83912764]
[1771556302848,3.65653779,82.997,82.965,3.98522764]
[1771556305954,3.13962936,82.99,82.965,3.98522764]
[1771556307148,3.65653779,82.997,82.965,3.98522764]
[1771556309450,3.13962936,82.99,82.965,3.98522764]
[1771556309858,3.13962936,82.99,82.968,10.8534]
[1771556310057,10.8479,83.011,82.968,10.8534]
[1771556310058,3.65653779,82.999,82.968,10.8534]
[1771556310356,3.13962936,82.99,82.968,10.8534]
[1771556313556,3.65653779,82.979,82.942,71.0]
[1771556313762,3.65653779,82.969,82.935,3.98522764]
[1771556314653,3.65653779,82.969,82.937,10.8574]
[1771556315358,3.65653779,82.969,82.942,10.8568]
[1771556318253,3.65653779,82.969,82.938,3.98522764]
[1771556319058,3.65653779,82.969,82.939,10.8573]
[1771556320662,3.65653779,82.969,82.923,71.0]
[1771556320663,3.65653779,82.969,82.929,10.8585]
[1771556320856,7.05602395,82.96,82.929,10.8585]
[1771556321062,3.13892464,82.97,82.93,3.82464002]
[1771556322663,3.13892464,82.97,82.94,10.8571]
[1771556323863,3.91709931,82.959,82.929,14.68314002]
[1771556324061,3.91709931,82.959,82.93,3.82464002]
[1771556325965,3.91709931,82.959,82.929,10.8585]
[1771556326159,3.91709931,82.959,82.918,14.68454002]
[1771556326365,3.91709931,82.939,82.908,3.82464002]
[1771556327762,3.91709931,82.939,82.909,10.8612]
[1771556328064,3.13892464,82.95,82.91,3.82464002]
[1771556328661,3.13892464,82.95,82.919,10.8598]
[1771556331170,7.05602395,82.95,82.919,10.8598]
[1771556331469,3.91709931,82.95,82.919,10.8598]
[1771556332062,3.13892464,82.95,82.904,25.26529054]
[1771556332365,3.91709931,82.949,82.905,3.82464002]
[1771556333775,3.91709931,82.949,82.904,25.26529054]
[1771556333776,3.91709931,82.948,82.906,3.82464002]
[1771556334773,3.91709931,82.948,82.909,3.82464002]
[1771556335877,3.13892464,82.95,82.909,3.82464002]
[1771556335878,3.91709931,82.945,82.909,3.82464002]
[1771556336276,3.91709931,82.945,82.911,3.82464002]
[1771556339977,3.91709931,82.952,82.911,3.82464002]
[1771556340683,3.91709931,82.946,82.911,3.82464002]
[1771556341782,3.13892464,82.94,82.904,25.26529054]
[1771556341983,3.91709931,82.929,82.904,25.26529054]
[1771556347590,3.91709931,82.929,82.896,3.82464002]
[1771556348092,3.91709931,82.929,82.897,3.83752412]
[1771556356999,3.91709931,82.929,82.9,3.83752412]
[1771556357197,3.83848335,82.938,82.9,3.83752412]
[1771556358302,3.83848335,82.936,82.9,3.83752412]
[1771556359103,3.83848335,82.934,82.9,3.83752412]
[1771556362906,3.83848335,82.928,82.9,3.83752412]
[1771556363901,3.83848335,82.938,82.9,3.83752412]
[1771556364804,10.8578,82.936,82.9,3.83752412]
[1771556373109,3.83848335,82.935,82.9,3.83752412]
[1771556377416,3.13892464,82.93,82.9,3.83752412]
[1771556378412,3.13892464,82.92,82.877,3.66216826]
[1771556378617,3.9576241,82.919,82.877,3.66216826]
[1771556379819,14.8176241,82.919,82.878,10.8652]
[1771556380119,3.9576241,82.918,82.878,14.52736826]
[1771556382614,3.9576241,82.918,82.879,3.66216826]
[1771556386424,3.9576241,82.916,82.879,3.66216826]
[1771556387814,3.9576241,82.916,82.883,3.66216826]
[1771556390316,10.8607,82.913,82.883,3.66216826]
[1771556394329,14.8183241,82.913,82.883,3.66216826]
[1771556395027,3.9576241,82.909,82.864,71.0]
[1771556395325,3.9576241,82.899,82.865,3.66216826]
[1771556395623,3.9576241,82.897,82.829,3.66216826]
[1771556395824,3.9576241,82.889,82.841,3.66216826]
[1771556396025,3.9576241,82.889,82.851,3.66216826]
[1771556397831,3.9576241,82.889,82.859,10.8677]
[1771556398129,3.9576241,82.889,82.859,14.52986826]
[1771556400125,3.9576241,82.889,82.859,3.66216826]
[1771556400332,3.9576241,82.889,82.849,3.66216826]
[1771556400823,3.9576241,82.889,82.85,3.14346444]
[1771556401027,10.8626,82.899,82.851,3.66216826]
[1771556401028,14.8202241,82.899,82.851,3.66216826]
[1771556401829,3.9576241,82.898,82.859,3.66216826]
[1771556402423,3.77776834,82.892,82.859,3.66216826]
[1771556403431,3.14346444,82.9,82.86,3.9746701]
[1771556403631,6.92123278,82.9,82.86,3.9746701]
[1771556403836,36.21,82.943,82.86,3.9746701]
[1771556403837,3.14346444,82.91,82.861,3.9746701]
[1771556404035,3.77776834,82.911,82.876,3.9746701]
[1771556405432,3.14346444,82.93,82.881,3.9746701]
[1771556405626,6.92123278,82.93,82.881,3.9746701]
[1771556405829,3.77776834,82.929,82.881,3.9746701]
[1771556406125,3.77776834,82.929,82.888,3.9746701]
[1771556407829,4.03418506,82.926,82.888,3.9746701]
[1771556408934,4.03418506,82.926,82.895,4.02588619]
[1771556409236,4.03418506,82.937,82.895,4.02588619]
[1771556410835,4.03418506,82.937,82.899,4.02588619]
[1771556412529,4.03418506,82.937,82.901,4.02588619]
[1771556419139,3.14346444,82.93,82.901,4.02588619]
[1771556419935,4.03418506,82.937,82.857,71.0]
[1771556419936,4.03418506,82.937,82.903,4.02588619]
[1771556420736,4.03418506,82.929,82.902,10.8621]
[1771556427752,4.03418506,82.929,82.902,14.88798619]
[1771556428552,3.14346444,82.93,82.904,14.88768619]
[1771556428858,4.03418506,82.948,82.905,4.02588619]
[1771556429754,4.03418506,82.948,82.911,4.02588619]
[1771556431254,21.7041,82.98,82.9,3.14346444]
[1771556431255,4.03418506,82.957,82.922,4.02588619]
[1771556433153,4.03418506,82.957,82.91,3.14346444]
[1771556433154,4.03418506,82.957,82.93,4.02588619]
[1771556433459,4.03418506,82.957,82.929,10.8585]
[1771556436857,3.14346444,82.97,82.932,3.92439808]
[1771556437355,3.14346444,82.97,82.937,3.92439808]
[1771556437952,3.14346444,82.98,82.937,3.92439808]
[1771556438261,3.14346444,82.97,82.937,3.92439808]
[1771556438762,3.14346444,82.97,82.943,3.92439808]
[1771556439961,3.13899776,82.97,82.943,3.92439808]
[1771556441762,3.13899776,82.98,82.943,3.92439808]
[1771556441957,3.13899776,82.98,82.945,3.92439808]
[1771556443458,3.13899776,82.98,82.949,3.92439808]
[1771556444458,3.84508809,82.99,82.959,10.8546]
[1771556444661,6.98408585,82.99,82.96,3.92439808]
[1771556444861,3.84508809,82.99,82.96,3.92439808]
[1771556445058,6.98408585,82.99,82.96,3.92439808]
[1771556446060,3.13899776,82.99,82.96,3.92439808]
[1771556446264,3.13899776,82.99,82.962,14.77859808]
[1771556446666,3.13899776,82.99,82.962,3.92439808]
[1771556447164,6.98408585,82.99,82.962,10.8542]
[1771556452966,6.98408585,82.99,82.959,3.92439808]
[1771556454561,6.98408585,82.99,82.96,10.8545]
[1771556454767,3.84508809,82.979,82.945,3.92439808]
[1771556455767,3.84508809,82.979,82.945,14.78079808]
[1771556461267,3.84508809,82.979,82.948,3.92439808]
[1771556461973,3.84508809,82.979,82.951,10.8556]
[1771556462867,3.84508809,82.979,82.948,3.92439808]
[1771556463873,9.09538021,83.021,82.91,21.7221]
[1771556463874,3.67817018,82.969,82.938,3.85032544]
[1771556464373,3.67817018,82.969,82.921,3.85032544]
[1771556464573,3.67817018,82.969,82.923,3.85032544]
[1771556464775,3.67817018,82.969,82.934,10.8579]
[1771556468578,36.19,83.013,82.932,3.71246887]
[1771556468579,3.71592846,82.959,82.932,3.71246887]
[1771556468778,3.71592846,82.959,82.926,10.8589]
[1771556468980,3.71592846,82.949,82.911,3.71246887]
[1771556469480,3.71592846,82.949,82.921,3.71246887]
[1771556469681,3.71592846,82.959,82.921,3.71246887]
[1771556469981,3.71592846,82.959,82.924,10.8592]
[1771556470181,3.71592846,82.959,82.921,3.71246887]
[1771556471886,3.71592846,82.958,82.921,3.71246887]
[1771556472678,3.71592846,82.956,82.921,3.71246887]
[1771556473381,10.8553,82.954,82.921,3.71246887]
[1771556476874,3.71592846,82.953,82.921,3.71246887]
[1771556477485,10.8553,82.954,82.921,3.71246887]
[1771556479385,6.85492622,82.96,82.921,3.71246887]
[1771556479583,3.71592846,82.959,82.921,3.71246887]
[1771556480784,10.8548,82.958,82.921,3.71246887]
[1771556481180,3.71592846,82.957,82.921,3.71246887]
[1771556489992,3.71592846,82.955,82.921,3.71246887]
[1771556497196,3.93701671,82.953,82.921,3.71246887]
[1771556497398,3.93701671,82.953,82.923,4.03200887]
[1771556497603,3.13899776,82.96,82.923,4.03200887]
[1771556497808,3.93701671,82.96,82.923,4.03200887]
[1771556498501,9.14779861,82.99,82.927,4.03200887]
[1771556498804,9.14779861,82.99,82.889,21.7276]
[1771556498805,3.13899776,82.98,82.931,4.03200887]
[1771556499205,3.93701671,82.989,82.947,4.03200887]
[1771556499405,8.27612216,82.988,82.947,4.03200887]
[1771556499608,3.93701671,82.986,82.947,4.03200887]
[1771556499900,13.98969776,82.99,82.947,4.03200887]
[1771556499901,3.93701671,82.984,82.947,4.03200887]
[1771556502113,3.93701671,82.983,82.947,4.03200887]
[1771556502308,3.93701671,82.983,82.948,10.8561]
[1771556502613,13.98903262,82.99,82.949,4.03200887]
[1771556502813,4.34075202,82.989,82.949,4.03200887]
[1771556503010,4.34075202,82.988,82.949,4.03200887]
[1771556503207,3.93701671,82.99,82.959,4.03200887]
[1771556503513,13.98773262,83.0,82.959,4.03200887]
[1771556503716,8.27875368,82.999,82.959,4.03200887]
[1771556503911,4.34173697,82.998,82.959,4.03200887]
[1771556504107,3.93701671,82.999,82.959,4.03200887]
[1771556505911,14.78661671,82.998,82.959,4.03200887]
[1771556506115,3.13833262,82.99,82.959,4.03200887]
[1771556506417,7.07534933,82.99,82.959,4.03200887]
[1771556506612,3.93701671,82.989,82.951,10.8556]
[1771556507822,3.93701671,82.989,82.955,10.8552]
[1771556508017,3.93701671,82.989,82.956,4.03200887]
[1771556509622,3.13833262,83.0,82.958,4.03200887]
[1771556509922,3.93701671,82.999,82.958,4.03200887]
[1771556510725,3.93701671,82.999,82.961,10.8543]
[1771556511121,3.13833262,82.99,82.961,10.8543]
[1771556512325,3.13833262,82.99,82.962,4.03200887]
[1771556512625,3.93701671,82.999,82.962,4.03200887]
[1771556523529,4.04955628,83.009,82.965,3.68236461]
[1771556523729,4.35063411,83.008,82.965,3.68236461]
[1771556523929,4.04955628,83.009,82.965,3.68236461]
[1771556524631,4.04955628,82.989,82.945,3.68236461]
[1771556525830,4.04955628,82.989,82.955,10.8551]
[1771556526034,4.04955628,82.979,82.943,3.68236461]
[1771556526627,4.04955628,82.969,82.942,71.0]
[1771556526832,4.04955628,82.969,82.939,3.84115163]
[1771556527429,4.04955628,82.969,82.931,10.8582]
[1771556527629,4.04955628,82.969,82.929,3.84115163]
[1771556527630,4.04955628,82.969,82.932,3.84115163]
[1771556528639,3.7649939,82.959,82.926,10.8589]
[1771556529234,3.13833262,82.95,82.917,10.86]
[1771556529429,3.7649939,82.949,82.917,10.86]
[1771556533538,14.6198939,82.958,82.918,3.84115163]
[1771556534543,3.7649939,82.968,82.924,3.84115163]
[1771556535742,3.7649939,82.968,82.926,3.84115163]
[1771556535743,10.8537,82.967,82.926,3.84115163]
[1771556537045,3.7649939,82.966,82.926,3.84115163]
[1771556539240,3.7649939,82.949,82.877,3.84115163]
[1771556539447,3.7649939,82.939,82.891,3.84115163]
[1771556546149,3.7649939,82.939,82.892,3.84115163]
[1771556548456,3.13833262,82.93,82.892,3.84115163]
[1771556552655,3.7649939,82.937,82.896,3.84115163]
[1771556553061,10.8566,82.945,82.896,3.84115163]
[1771556553760,10.8566,82.945,82.901,3.84115163]
[1771556553961,3.7649939,82.947,82.901,3.84115163]
[1771556554361,3.7649939,82.947,82.904,3.84115163]
[1771556555162,3.13833262,82.94,82.904,3.84115163]
[1771556561762,3.13833262,82.96,82.912,3.78221933]
[1771556562068,6.91693372,82.96,82.912,3.78221933]
[1771556562366,3.7786011,82.949,82.912,3.78221933]
[1771556564060,3.7786011,82.949,82.903,3.78221933]
[1771556564264,3.7786011,82.939,82.903,3.78221933]
[1771556566366,3.7786011,82.949,82.905,3.78221933]
[1771556567768,3.7786011,82.949,82.913,3.78221933]
[1771556570566,10.8552,82.956,82.913,3.78221933]
[1771556570769,3.7786011,82.959,82.909,3.78221933]
[1771556572769,3.7786011,82.955,82.915,3.78221933]
[1771556574073,3.7786011,82.951,82.915,3.78221933]
[1771556576573,3.7786011,82.942,82.906,3.78221933]
[1771556576773,3.7786011,82.942,82.902,71.0]
[1771556576774,3.7786011,82.939,82.902,71.0]
[1771556577769,3.7786011,82.935,82.902,71.0]
[1771556577972,3.7786011,82.935,82.896,3.78221933]
[1771556580277,3.7786011,82.935,82.894,10.8632]
[1771556580278,3.7786011,82.935,82.898,3.78221933]
[1771556583481,10.8581,82.933,82.898,3.78221933]
[1771556584380,3.92783638,82.947,82.901,3.79860397]
[1771556584584,4.35005199,82.946,82.901,3.79860397]
[1771556584785,4.35005199,82.945,82.911,3.79860397]
[1771556585083,3.92783638,82.969,82.921,3.79860397]
[1771556585279,4.35144993,82.968,82.921,3.79860397]
[1771556585480,4.35144993,82.967,82.921,3.79860397]
[1771556585677,4.35144993,82.966,82.931,3.79860397]
[1771556585881,3.92783638,82.969,82.931,3.79860397]
[1771556586081,4.3479896,82.968,82.931,3.79860397]
[1771556586279,4.3479896,82.967,82.931,3.79860397]
[1771556586485,3.92783638,82.969,82.931,3.79860397]
[1771556587186,6.93525685,82.98,82.931,3.79860397]
[1771556587385,6.93525685,82.98,82.94,3.68890636]
[1771556587386,4.34506831,82.979,82.94,3.68890636]
[1771556587683,6.93525685,82.98,82.94,3.68890636]
[1771556589484,3.1407925,82.99,82.943,3.68890636]
[1771556589689,3.1407925,83.0,82.951,3.68890636]
[1771556589885,3.79446435,83.003,82.951,3.68890636]
[1771556590282,3.1407925,83.0,82.951,3.68890636]
[1771556590486,3.79446435,82.997,82.952,3.68890636]
[1771556592087,3.79446435,82.995,82.952,3.68890636]
[1771556592989,3.79446435,82.989,82.952,3.68890636]
[1771556598996,30.52124759,83.031,82.952,3.68890636]
[1771556598997,3.79446435,82.987,82.952,3.68890636]
[1771556601894,10.8499,82.996,82.954,3.68890636]
[1771556602493,10.8507,82.99,82.954,3.68890636]
[1771556607688,3.79446435,82.986,82.946,10.8563]
[1771556607995,3.79446435,82.986,82.947,3.68890636]
[1771556608698,10.8515,82.983,82.947,3.68890636]
[1771556609297,3.79446435,82.986,82.947,3.68890636]
[1771556610101,3.79446435,82.986,82.949,3.68890636]
[1771556611700,3.79446435,82.986,82.952,14.54450636]
[1771556612500,3.79446435,82.986,82.956,3.68890636]
[1771556615198,10.8502,82.993,82.956,3.68890636]
[1771556615894,10.8502,82.993,82.958,3.68890636]
[1771556616090,3.79446435,82.996,82.958,3.68890636]
[1771556617499,3.7004144,83.009,82.963,3.9429936]
[1771556617695,3.7004144,83.009,82.964,3.9429936]
[1771556618793,3.7004144,83.009,82.972,14.7959936]
[1771556619596,3.7004144,83.009,82.975,10.8525]
[1771556619794,3.7004144,83.009,82.976,3.9429936]
[1771556620794,3.7004144,83.009,82.978,3.9429936]
[1771556621301,3.7004144,83.009,82.98,10.8519]
[1771556621503,3.7004144,83.009,82.98,14.7948936]
[1771556622001,3.1407925,83.02,82.97,3.1407925]
[1771556622002,3.7004144,83.018,82.985,14.7941936]
[1771556622994,3.7004144,83.018,82.986,3.9429936]
[1771556624197,3.7004144,83.018,82.979,3.9429936]
[1771556625905,3.7004144,83.018,82.98,10.8518]
[1771556628908,3.7004144,83.018,82.985,3.9429936]
[1771556629701,3.7004144,83.018,82.986,10.8511]
[1771556634317,3.7004144,83.016,82.986,10.8511]
[1771556634913,3.7004144,83.009,82.974,10.8526]
[1771556637708,3.7004144,83.007,82.973,3.9429936]
[1771556638816,3.7004144,82.999,82.963,3.9429936]
[1771556639019,3.7004144,82.999,82.953,3.9429936]
[1771556639816,10.8503,82.993,82.953,3.9429936]
[1771556640118,3.7004144,82.992,82.953,3.9429936]
[1771556641514,3.7004144,82.983,82.942,3.9429936]
[1771556641711,3.7004144,82.979,82.942,3.9429936]
[1771556642616,3.7004144,82.979,82.943,10.8567]
[1771556642822,3.13535295,82.99,82.944,4.0038339]
[1771556643021,3.76117486,82.994,82.944,4.0038339]
[1771556643721,3.76117486,82.994,82.924,454.50515191]
[1771556643722,3.76117486,83.012,82.951,4.0038339]
[1771556643918,3.76117486,83.01,82.971,4.0038339]
[1771556644820,10.8482,83.009,82.973,4.0038339]
[1771556646022,10.8473,83.016,82.973,4.0038339]
[1771556647426,10.8473,83.016,82.981,3.69015869]
[1771556651229,3.13535295,83.02,82.981,3.69015869]
[1771556651428,4.00690911,83.023,82.981,3.69015869]
[1771556652729,3.13535295,83.02,82.981,3.69015869]
[1771556653229,3.13535295,83.02,82.981,14.54185869]
[1771556653430,3.13535295,83.02,82.982,3.69015869]
[1771556654130,3.13535295,83.02,82.987,3.69015869]
[1771556654830,7.14226206,83.02,82.987,3.69015869]
[1771556656925,4.00690911,83.019,82.987,3.69015869]
[1771556657132,3.13535295,83.03,82.987,3.69015869]
[1771556657324,4.00690911,83.028,82.987,3.69015869]
[1771556657923,36.19,83.064,82.987,3.69015869]
[1771556657924,7.14226206,83.02,82.987,3.69015869]
[1771556660533,4.00690911,83.02,82.987,3.69015869]
[1771556660933,4.00690911,83.02,82.988,14.54095869]
[1771556661133,4.00690911,83.02,82.989,3.69015869]
[1771556662733,4.00690911,83.02,82.991,3.69015869]
[1771556664639,4.00690911,83.03,83.002,10.8489]
[1771556673346,7.14226206,83.03,83.002,10.8489]
[1771556674049,7.14226206,83.03,83.003,3.69015869]
[1771556676049,3.13535295,83.03,83.003,3.69015869]
[1771556676249,3.13535295,83.04,83.003,3.69015869]
[1771556677653,3.13535295,83.04,83.009,10.848]
[1771556677855,3.13535295,83.04,83.009,14.59531975]
[1771556678353,3.13535295,83.04,83.01,3.74731975]
[1771556679751,3.72072599,83.039,83.009,10.848]
[1771556682655,3.72072599,83.029,83.0,3.74731975]
[1771556690765,3.72072599,83.029,82.999,10.8494]
[1771556690766,3.72072599,83.019,82.986,3.74731975]
[1771556695266,3.13467715,83.02,82.95,30.09303099]
[1771556695267,3.72072599,83.014,82.975,3.74731975]
[1771556695462,3.72072599,83.012,82.975,3.74731975]
[1771556699370,10.8481,83.01,82.975,3.74731975]
[1771556700067,10.8472,83.017,82.975,3.74731975]
[1771556700268,3.72072599,83.019,82.971,3.74731975]
[1771556700671,10.8482,83.009,82.971,3.74731975]
[1771556700970,3.72072599,82.989,82.951,3.74731975]
[1771556701668,3.72072599,82.988,82.951,3.74731975]
[1771556706275,3.72072599,82.988,82.954,3.66761113]